[Event "Early-Titled-Tuesday-Blitz-June-18-2024"]
[Site "Chess.com"]
[Date "2024.06.18"]
[Round "9"]
[White "HamedWafa4"]
[Black "rookpower2004"]
[Result "0-1"]
[WhiteElo "2678"]
[BlackElo "2505"]
[TimeControl "180+1"]
[EndTime "9:47:38 PDT"]
[Termination "rookpower2004 won by resignation"]

1. e4 {[%clk 0:03:00.9]} 1... e6 {[%clk 0:02:58.3]} 2. d4 {[%clk 0:02:54.9]}
2... d5 {[%clk 0:02:57.8]} 3. e5 {[%clk 0:02:53.7]} 3... c5 {[%clk 0:02:55.5]}
4. c3 {[%clk 0:02:54.5]} 4... Nc6 {[%clk 0:02:54.3]} 5. Nf3 {[%clk 0:02:51.6]}
5... Qb6 {[%clk 0:02:51.7]} 6. Be2 {[%clk 0:02:45.3]} 6... Nh6 {[%clk
0:02:47.9]} 7. Bxh6 {[%clk 0:02:44.7]} 7... Qxb2 {[%clk 0:02:42.8]} 8. Be3
{[%clk 0:02:44.4]} 8... Qxa1 {[%clk 0:02:41.2]} 9. Qc2 {[%clk 0:02:44.6]} 9...
cxd4 {[%clk 0:02:36]} 10. Nxd4 {[%clk 0:02:44.2]} 10... Ba3 {[%clk 0:02:31.8]}
11. Nb5 {[%clk 0:02:25.9]} 11... O-O {[%clk 0:02:25.6]} 12. Nxa3 {[%clk
0:02:23.1]} 12... d4 {[%clk 0:02:25]} 13. Bd2 {[%clk 0:02:19.9]} 13... Nxe5
{[%clk 0:02:18.8]} 14. O-O {[%clk 0:02:18]} 14... d3 {[%clk 0:02:13.7]} 15. Bxd3
{[%clk 0:02:01.9]} 15... Nxd3 {[%clk 0:02:14.6]} 16. Qxd3 {[%clk 0:02:02.2]}
16... Qb2 {[%clk 0:02:13.4]} 17. Nb5 {[%clk 0:01:54.7]} 17... Bd7 {[%clk
0:02:00.4]} 18. Qxd7 {[%clk 0:01:19.1]} 18... Rfd8 {[%clk 0:01:58.2]} 19. Qxb7
{[%clk 0:01:06.7]} 19... Rab8 {[%clk 0:01:51.9]} 20. Qxa7 {[%clk 0:01:06.8]}
20... Qxb5 {[%clk 0:01:48.6]} 21. Be3 {[%clk 0:00:55]} 21... Qxb1 {[%clk
0:01:43.9]} 22. Qa4 {[%clk 0:00:45.4]} 22... Qb2 {[%clk 0:01:37.2]} 23. Bd4
{[%clk 0:00:33.3]} 23... Ra8 {[%clk 0:01:35.9]} 24. Qc6 {[%clk 0:00:31.7]} 24...
Qxa2 {[%clk 0:01:32.7]} 25. Qf3 {[%clk 0:00:24.6]} 25... Qd5 {[%clk 0:01:32]}
26. Qg3 {[%clk 0:00:25]} 26... g6 {[%clk 0:01:24.6]} 27. Re1 {[%clk 0:00:24.6]}
27... Qe4 {[%clk 0:01:18.9]} 28. f3 {[%clk 0:00:19.2]} 28... Qf5 {[%clk
0:01:17.9]} 29. Qh4 {[%clk 0:00:19.3]} 29... Rd5 {[%clk 0:01:08.8]} 30. h3
{[%clk 0:00:10.5]} 30... Rad8 {[%clk 0:01:06]} 31. Kh2 {[%clk 0:00:09.8]} 31...
Rc8 {[%clk 0:00:56]} 32. Re4 {[%clk 0:00:09.2]} 32... e5 {[%clk 0:00:51.2]} 33.
Be3 {[%clk 0:00:09.5]} 33... Rxc3 {[%clk 0:00:47.3]} 34. Bg5 {[%clk 0:00:08.6]}
34... Rc2 {[%clk 0:00:42.8]} 35. Re3 {[%clk 0:00:07.6]} 35... Rdd2 {[%clk
0:00:40]} 36. Rb3 {[%clk 0:00:03.5]} 36... Rxg2+ {[%clk 0:00:39.7]} 37. Kh1
{[%clk 0:00:04.1]} 37... Rh2+ {[%clk 0:00:38.5]} 38. Kg1 {[%clk 0:00:04.7]}
38... Rcg2+ {[%clk 0:00:38.3]} 39. Kf1 {[%clk 0:00:05.2]} 39... Rf2+ {[%clk
0:00:35]} 40. Ke1 {[%clk 0:00:03.9]} 40... Re2+ {[%clk 0:00:20.2]} 41. Kf1
{[%clk 0:00:04.1]} 41... Rhf2+ {[%clk 0:00:18.8]} 42. Kg1 {[%clk 0:00:04.7]}
42... Rg2+ {[%clk 0:00:19]} 43. Kf1 {[%clk 0:00:05.1]} 43... Qxg5 {[%clk
0:00:19.5]} 44. Qxg5 {[%clk 0:00:04.5]} 44... Rxg5 {[%clk 0:00:18.6]} 45. Kxe2
{[%clk 0:00:05.4]} 45... Rg3 {[%clk 0:00:17.9]} 46. Rb5 {[%clk 0:00:05.6]} 46...
f6 {[%clk 0:00:16.3]} 47. Rb7 {[%clk 0:00:06]} 47... Rxh3 {[%clk 0:00:15.7]} 48.
Ke3 {[%clk 0:00:06.9]} 48... Rg3 {[%clk 0:00:15.4]} 49. Ke4 {[%clk 0:00:07.3]}
49... h5 {[%clk 0:00:12.6]} 50. Kd5 {[%clk 0:00:07.3]} 50... Rxf3 {[%clk
0:00:11.7]} 51. Ke6 {[%clk 0:00:07.9]} 51... e4 {[%clk 0:00:11.8]} 52. Rb8+
{[%clk 0:00:06.8]} 52... Kg7 {[%clk 0:00:11.3]} 53. Rb7+ {[%clk 0:00:06.9]}
53... Kh6 {[%clk 0:00:10.1]} 54. Kf7 {[%clk 0:00:07.4]} 54... e3 {[%clk
0:00:10.2]} 55. Re7 {[%clk 0:00:07.8]} 55... h4 {[%clk 0:00:08.9]} 56. Kg8
{[%clk 0:00:06.6]} 56... Kg5 {[%clk 0:00:08.7]} 0-1

[Event "Early-Titled-Tuesday-Blitz-June-18-2024"]
[Site "Chess.com"]
[Date "2024.06.18"]
[Round "9"]
[White "Abund"]
[Black "gafkens"]
[Result "1-0"]
[WhiteElo "2720"]
[BlackElo "2617"]
[TimeControl "180+1"]
[EndTime "9:47:39 PDT"]
[Termination "Abund won by resignation"]

1. e4 {[%clk 0:03:00.9]} 1... c5 {[%clk 0:02:56.2]} 2. Nf3 {[%clk 0:03:00.6]}
2... Nc6 {[%clk 0:02:51.6]} 3. Bc4 {[%clk 0:02:50.9]} 3... g6 {[%clk 0:02:48.9]}
4. O-O {[%clk 0:02:50.1]} 4... Bg7 {[%clk 0:02:48.4]} 5. c3 {[%clk 0:02:50.3]}
5... e6 {[%clk 0:02:36.6]} 6. Re1 {[%clk 0:02:48.1]} 6... Nge7 {[%clk
0:02:35.6]} 7. d4 {[%clk 0:02:42.8]} 7... cxd4 {[%clk 0:02:32.9]} 8. Nxd4 {[%clk
0:02:37.3]} 8... O-O {[%clk 0:02:17.3]} 9. Nf3 {[%clk 0:02:30.3]} 9... d5 {[%clk
0:02:16.5]} 10. exd5 {[%clk 0:02:28.3]} 10... exd5 {[%clk 0:02:10.6]} 11. Bf1
{[%clk 0:02:22.2]} 11... h6 {[%clk 0:02:09.8]} 12. Be3 {[%clk 0:02:21]} 12...
Nf5 {[%clk 0:02:04.3]} 13. Bc5 {[%clk 0:02:20.7]} 13... Re8 {[%clk 0:01:55.8]}
14. Rxe8+ {[%clk 0:02:19.7]} 14... Qxe8 {[%clk 0:01:56.7]} 15. Qxd5 {[%clk
0:02:08.1]} 15... b6 {[%clk 0:01:43.1]} 16. Ba3 {[%clk 0:02:01.4]} 16... Bb7
{[%clk 0:01:33.5]} 17. Qd1 {[%clk 0:02:00.3]} 17... Rd8 {[%clk 0:01:19.8]} 18.
Nbd2 {[%clk 0:02:00]} 18... g5 {[%clk 0:01:18.4]} 19. Qc2 {[%clk 0:01:54.3]}
19... Qd7 {[%clk 0:01:14.2]} 20. h3 {[%clk 0:01:49.9]} 20... Ne5 {[%clk
0:00:49.9]} 21. Nxe5 {[%clk 0:01:41.1]} 21... Bxe5 {[%clk 0:00:50.8]} 22. Ne4
{[%clk 0:01:40.6]} 22... Qd5 {[%clk 0:00:37]} 23. Re1 {[%clk 0:01:38.7]} 23...
Kg7 {[%clk 0:00:30.3]} 24. b3 {[%clk 0:01:26.5]} 24... Nh4 {[%clk 0:00:20.5]}
25. c4 {[%clk 0:00:58.9]} 25... Qc6 {[%clk 0:00:20.5]} 26. Nxg5 {[%clk
0:00:51.8]} 26... Bh2+ {[%clk 0:00:12.1]} 27. Kxh2 {[%clk 0:00:48.1]} 27... hxg5
{[%clk 0:00:12.4]} 28. Qc3+ {[%clk 0:00:43.2]} 28... Kg8 {[%clk 0:00:12.3]} 29.
Qg3 {[%clk 0:00:42]} 29... Qg6 {[%clk 0:00:12.5]} 30. Be7 {[%clk 0:00:37.1]}
30... Re8 {[%clk 0:00:12.5]} 31. Bd3 {[%clk 0:00:29.6]} 31... Qg7 {[%clk
0:00:04.8]} 32. Bf6 {[%clk 0:00:27.7]} 32... Rxe1 {[%clk 0:00:03.9]} 33. Bxg7
{[%clk 0:00:24.9]} 33... Bxg2 {[%clk 0:00:04]} 34. Qb8+ {[%clk 0:00:15.5]} 34...
Kxg7 {[%clk 0:00:04]} 35. Kg3 {[%clk 0:00:13.8]} 35... Re6 {[%clk 0:00:03.2]}
36. Bf5 {[%clk 0:00:11.3]} 36... Nxf5+ {[%clk 0:00:02.5]} 37. Kxg2 {[%clk
0:00:11.4]} 37... Nh4+ {[%clk 0:00:03.2]} 38. Kg3 {[%clk 0:00:11.7]} 38... Rf6
{[%clk 0:00:03.8]} 39. Qb7 {[%clk 0:00:10.6]} 39... Kg6 {[%clk 0:00:02.8]} 40.
Qe4+ {[%clk 0:00:10.4]} 40... Kh6 {[%clk 0:00:02.2]} 41. b4 {[%clk 0:00:08.8]}
41... a5 {[%clk 0:00:02]} 42. a3 {[%clk 0:00:08.7]} 42... axb4 {[%clk
0:00:02.2]} 43. axb4 {[%clk 0:00:09.6]} 43... Nf5+ {[%clk 0:00:02.2]} 44. Kg2
{[%clk 0:00:09.6]} 44... Nh4+ {[%clk 0:00:03.1]} 45. Kg3 {[%clk 0:00:10.1]}
45... Nf5+ {[%clk 0:00:03]} 46. Kh2 {[%clk 0:00:10.6]} 46... Nh4 {[%clk
0:00:03.9]} 47. Kg1 {[%clk 0:00:04.9]} 47... Nf3+ {[%clk 0:00:04.3]} 48. Kh1
{[%clk 0:00:04.7]} 48... Nh4 {[%clk 0:00:04]} 49. Qd4 {[%clk 0:00:04.6]} 49...
Kg6 {[%clk 0:00:03.7]} 50. c5 {[%clk 0:00:04.8]} 50... bxc5 {[%clk 0:00:04.1]}
51. bxc5 {[%clk 0:00:05.7]} 51... Re6 {[%clk 0:00:02]} 52. Qd3+ {[%clk
0:00:05.6]} 52... f5 {[%clk 0:00:02.2]} 53. Qc3 {[%clk 0:00:05]} 53... f4 {[%clk
0:00:01.8]} 54. c6 {[%clk 0:00:05.1]} 54... Nf3 {[%clk 0:00:01.7]} 55. Qxf3
{[%clk 0:00:04.8]} 55... Rd6 {[%clk 0:00:01.9]} 56. Kg2 {[%clk 0:00:05.2]} 56...
Kf6 {[%clk 0:00:02]} 57. c7 {[%clk 0:00:05.5]} 57... Rc6 {[%clk 0:00:01.9]} 58.
Qxc6+ {[%clk 0:00:05.8]} 1-0

[Event "Early-Titled-Tuesday-Blitz-June-18-2024"]
[Site "Chess.com"]
[Date "2024.06.18"]
[Round "9"]
[White "N_I_Chess"]
[Black "mortngabriel"]
[Result "1-0"]
[WhiteElo "2337"]
[BlackElo "2469"]
[TimeControl "180+1"]
[EndTime "9:47:39 PDT"]
[Termination "N_I_Chess won on time"]

1. d4 {[%clk 0:00:50.8]} 1... Nf6 {[%clk 0:02:59.7]} 2. c4 {[%clk 0:00:50.4]}
2... e6 {[%clk 0:03:00.2]} 3. Nc3 {[%clk 0:00:51]} 3... Bb4 {[%clk 0:03:00.9]}
4. Bd2 {[%clk 0:00:51.6]} 4... O-O {[%clk 0:03:01.1]} 5. e3 {[%clk 0:00:51.8]}
5... b6 {[%clk 0:03:01.4]} 6. Bd3 {[%clk 0:00:51.6]} 6... Bb7 {[%clk 0:03:00.7]}
7. Nf3 {[%clk 0:00:51.1]} 7... d5 {[%clk 0:02:59.7]} 8. cxd5 {[%clk 0:00:50.9]}
8... exd5 {[%clk 0:03:00.6]} 9. O-O {[%clk 0:00:49.9]} 9... Bd6 {[%clk
0:02:58.4]} 10. Rc1 {[%clk 0:00:46.7]} 10... a6 {[%clk 0:02:58.1]} 11. Qc2
{[%clk 0:00:43.7]} 11... c5 {[%clk 0:02:57.9]} 12. Rfd1 {[%clk 0:00:41.9]} 12...
c4 {[%clk 0:02:54.8]} 13. Bf5 {[%clk 0:00:41.5]} 13... g6 {[%clk 0:02:50.2]} 14.
Bh3 {[%clk 0:00:41.2]} 14... Re8 {[%clk 0:02:49.3]} 15. g3 {[%clk 0:00:40.9]}
15... b5 {[%clk 0:02:44.6]} 16. a3 {[%clk 0:00:39.7]} 16... Nbd7 {[%clk
0:02:42.2]} 17. Bg2 {[%clk 0:00:38.2]} 17... Nb6 {[%clk 0:02:41.4]} 18. Na2
{[%clk 0:00:37.6]} 18... a5 {[%clk 0:02:39.6]} 19. Be1 {[%clk 0:00:36.3]} 19...
Qe7 {[%clk 0:02:34.8]} 20. Nd2 {[%clk 0:00:36.4]} 20... b4 {[%clk 0:02:34.6]}
21. b3 {[%clk 0:00:26.2]} 21... c3 {[%clk 0:02:31.6]} 22. Nf1 {[%clk 0:00:22.8]}
22... h6 {[%clk 0:02:07.7]} 23. a4 {[%clk 0:00:21.3]} 23... Kg7 {[%clk
0:02:07.1]} 24. h3 {[%clk 0:00:21.7]} 24... Ba6 {[%clk 0:02:00.3]} 25. Nh2
{[%clk 0:00:21.5]} 25... Ne4 {[%clk 0:01:55.6]} 26. Rb1 {[%clk 0:00:19.3]} 26...
h5 {[%clk 0:01:52.4]} 27. Nf3 {[%clk 0:00:14.8]} 27... g5 {[%clk 0:01:26.3]} 28.
Nc1 {[%clk 0:00:10.3]} 28... g4 {[%clk 0:01:26.4]} 29. Nh4 {[%clk 0:00:09.5]}
29... Qg5 {[%clk 0:01:22.6]} 30. hxg4 {[%clk 0:00:07.5]} 30... hxg4 {[%clk
0:01:22.3]} 31. Nd3 {[%clk 0:00:07.7]} 31... Rac8 {[%clk 0:01:00.5]} 32. Nf4
{[%clk 0:00:07.6]} 32... Bxf4 {[%clk 0:00:48.5]} 33. exf4 {[%clk 0:00:07.7]}
33... Qh5 {[%clk 0:00:47.7]} 34. f3 {[%clk 0:00:07.2]} 34... Nd6 {[%clk
0:00:20.4]} 35. Bf2 {[%clk 0:00:03.9]} 35... Re2 {[%clk 0:00:18.6]} 36. Qc1
{[%clk 0:00:04.6]} 36... Rce8 {[%clk 0:00:18.4]} 37. Re1 {[%clk 0:00:03.4]}
37... Bd3 {[%clk 0:00:09.6]} 38. fxg4 {[%clk 0:00:03.6]} 38... Qxg4 {[%clk
0:00:09.2]} 39. Bf3 {[%clk 0:00:04.3]} 39... Qh3 {[%clk 0:00:08.1]} 40. Bxe2
{[%clk 0:00:04.3]} 40... Bxb1 {[%clk 0:00:08.4]} 41. Bf1 {[%clk 0:00:03.9]}
41... Qg4 {[%clk 0:00:07]} 42. Rxe8 {[%clk 0:00:03.9]} 42... Nxe8 {[%clk
0:00:06.3]} 43. Qxb1 {[%clk 0:00:04.5]} 43... Nf6 {[%clk 0:00:06.3]} 44. Nf5+
{[%clk 0:00:04.2]} 44... Kf8 {[%clk 0:00:05.7]} 45. Ne3 {[%clk 0:00:04.9]} 45...
Qe6 {[%clk 0:00:04.8]} 46. Qd3 {[%clk 0:00:05.5]} 46... Ne4 {[%clk 0:00:05.1]}
47. Bg2 {[%clk 0:00:05.6]} 47... Nd7 {[%clk 0:00:04]} 48. Bxe4 {[%clk
0:00:05.3]} 48... dxe4 {[%clk 0:00:04.2]} 49. Qc4 {[%clk 0:00:05.8]} 49... Qf6
{[%clk 0:00:02.6]} 50. Qc8+ {[%clk 0:00:05.2]} 50... Ke7 {[%clk 0:00:02.1]} 51.
Qc4 {[%clk 0:00:04.3]} 1-0

[Event "Early-Titled-Tuesday-Blitz-June-18-2024"]
[Site "Chess.com"]
[Date "2024.06.18"]
[Round "9"]
[White "Gnechko_Ruslan"]
[Black "pouya21"]
[Result "1-0"]
[WhiteElo "2584"]
[BlackElo "2843"]
[TimeControl "180+1"]
[EndTime "9:47:40 PDT"]
[Termination "Gnechko_Ruslan won on time"]

1. e4 {[%clk 0:03:00.9]} 1... c5 {[%clk 0:02:59.6]} 2. Nf3 {[%clk 0:03:00.4]}
2... e6 {[%clk 0:02:59.8]} 3. d4 {[%clk 0:03:00.9]} 3... cxd4 {[%clk 0:03:00.7]}
4. Nxd4 {[%clk 0:03:01.6]} 4... Nc6 {[%clk 0:03:01.3]} 5. Nc3 {[%clk 0:03:01.6]}
5... Qc7 {[%clk 0:03:01.8]} 6. Be2 {[%clk 0:02:58]} 6... Nf6 {[%clk 0:03:00.6]}
7. O-O {[%clk 0:02:57.2]} 7... Be7 {[%clk 0:02:58.9]} 8. Kh1 {[%clk 0:02:52.2]}
8... O-O {[%clk 0:02:53.1]} 9. f4 {[%clk 0:02:49.3]} 9... d6 {[%clk 0:02:52.5]}
10. Nf3 {[%clk 0:02:42.4]} 10... a6 {[%clk 0:02:48.1]} 11. a3 {[%clk 0:02:42.9]}
11... b5 {[%clk 0:02:45.7]} 12. Bd3 {[%clk 0:02:43.4]} 12... Bb7 {[%clk
0:02:45.4]} 13. Qe1 {[%clk 0:02:43.3]} 13... b4 {[%clk 0:02:42]} 14. axb4 {[%clk
0:02:42.9]} 14... Nxb4 {[%clk 0:02:42.9]} 15. e5 {[%clk 0:02:42.3]} 15... Nxd3
{[%clk 0:02:30.7]} 16. cxd3 {[%clk 0:02:43.2]} 16... Nd5 {[%clk 0:02:31.3]} 17.
Bd2 {[%clk 0:02:16.1]} 17... Rac8 {[%clk 0:02:11.8]} 18. Nxd5 {[%clk 0:02:13]}
18... Bxd5 {[%clk 0:02:12.7]} 19. Rxa6 {[%clk 0:02:10.2]} 19... Qb7 {[%clk
0:02:07.3]} 20. Qa1 {[%clk 0:01:38.5]} 20... Ra8 {[%clk 0:02:03]} 21. Rxa8
{[%clk 0:01:33.4]} 21... Rxa8 {[%clk 0:02:03.9]} 22. Qb1 {[%clk 0:01:33.1]}
22... Rb8 {[%clk 0:01:53.6]} 23. Bc3 {[%clk 0:01:32.8]} 23... h6 {[%clk
0:01:46.6]} 24. Qe1 {[%clk 0:01:27.7]} 24... dxe5 {[%clk 0:01:43.8]} 25. Bxe5
{[%clk 0:01:20.6]} 25... Rc8 {[%clk 0:01:42.2]} 26. Qg3 {[%clk 0:01:21]} 26...
f6 {[%clk 0:01:32.1]} 27. Bc3 {[%clk 0:01:21]} 27... Rf8 {[%clk 0:00:49.1]} 28.
Nd4 {[%clk 0:01:03.4]} 28... Bb4 {[%clk 0:00:42.8]} 29. Ne2 {[%clk 0:00:45.3]}
29... Bd6 {[%clk 0:00:39.8]} 30. Qf2 {[%clk 0:00:41.4]} 30... Qb5 {[%clk
0:00:37.1]} 31. Qe3 {[%clk 0:00:30.7]} 31... Bc5 {[%clk 0:00:29.6]} 32. d4
{[%clk 0:00:25.7]} 32... Bd6 {[%clk 0:00:27.6]} 33. h3 {[%clk 0:00:26]} 33...
Bc4 {[%clk 0:00:24.3]} 34. Re1 {[%clk 0:00:25.2]} 34... Re8 {[%clk 0:00:23.8]}
35. Ng3 {[%clk 0:00:24.8]} 35... Bd5 {[%clk 0:00:18.4]} 36. f5 {[%clk
0:00:24.2]} 36... Qb8 {[%clk 0:00:13.9]} 37. Ne4 {[%clk 0:00:18]} 37... Bf8
{[%clk 0:00:07.3]} 38. Nc5 {[%clk 0:00:14.2]} 38... Qa8 {[%clk 0:00:03]} 39. Re2
{[%clk 0:00:13.4]} 39... e5 {[%clk 0:00:01.4]} 40. dxe5 {[%clk 0:00:12.7]} 40...
fxe5 {[%clk 0:00:01.4]} 41. f6 {[%clk 0:00:11]} 41... Qc6 {[%clk 0:00:02.1]} 42.
Ne4 {[%clk 0:00:09.4]} 42... Bxe4 {[%clk 0:00:02]} 43. fxg7 {[%clk 0:00:07.6]}
43... Bxg7 {[%clk 0:00:01.4]} 44. Qxe4 {[%clk 0:00:07.7]} 44... Qxe4 {[%clk
0:00:01.8]} 45. Rxe4 {[%clk 0:00:08.6]} 45... Kf7 {[%clk 0:00:02.7]} 46. Rb4
{[%clk 0:00:08.2]} 46... Bf6 {[%clk 0:00:02.8]} 47. Rb7+ {[%clk 0:00:08.5]}
47... Ke6 {[%clk 0:00:03.4]} 48. Rb6+ {[%clk 0:00:09]} 48... Kf7 {[%clk
0:00:03]} 49. Rb7+ {[%clk 0:00:08.5]} 49... Ke6 {[%clk 0:00:03]} 50. Kg1 {[%clk
0:00:08.3]} 50... Rc8 {[%clk 0:00:03]} 51. Kf2 {[%clk 0:00:08.3]} 51... h5
{[%clk 0:00:03.6]} 52. g4 {[%clk 0:00:07.8]} 52... hxg4 {[%clk 0:00:03.7]} 53.
hxg4 {[%clk 0:00:08.7]} 53... Rg8 {[%clk 0:00:02.9]} 54. Kf3 {[%clk 0:00:09]}
54... e4+ {[%clk 0:00:03]} 55. Kxe4 {[%clk 0:00:08.6]} 55... Rxg4+ {[%clk
0:00:03.2]} 56. Kf3 {[%clk 0:00:08.9]} 56... Rg6 {[%clk 0:00:02.1]} 57. Rb6+
{[%clk 0:00:09.2]} 57... Kf5 {[%clk 0:00:02.8]} 58. Rxf6+ {[%clk 0:00:09.4]} 1-0

[Event "Early-Titled-Tuesday-Blitz-June-18-2024"]
[Site "Chess.com"]
[Date "2024.06.18"]
[Round "9"]
[White "ManMish2"]
[Black "ChristopherYoo"]
[Result "1/2-1/2"]
[WhiteElo "2662"]
[BlackElo "2999"]
[TimeControl "180+1"]
[EndTime "9:47:40 PDT"]
[Termination "Game drawn by repetition"]

1. e4 {[%clk 0:02:57.5]} 1... e5 {[%clk 0:02:56.2]} 2. Nf3 {[%clk 0:02:57]} 2...
Nc6 {[%clk 0:02:56.9]} 3. Bb5 {[%clk 0:02:57.4]} 3... a6 {[%clk 0:02:56.7]} 4.
Ba4 {[%clk 0:02:57.4]} 4... d6 {[%clk 0:02:57.1]} 5. O-O {[%clk 0:02:57.1]} 5...
Bg4 {[%clk 0:02:56.6]} 6. h3 {[%clk 0:02:52]} 6... h5 {[%clk 0:02:56.3]} 7. d3
{[%clk 0:02:51.2]} 7... b5 {[%clk 0:02:54.8]} 8. Bb3 {[%clk 0:02:48]} 8... Nd4
{[%clk 0:02:54.7]} 9. hxg4 {[%clk 0:02:42.4]} 9... hxg4 {[%clk 0:02:54.6]} 10.
Bxf7+ {[%clk 0:02:38.7]} 10... Kxf7 {[%clk 0:02:52.7]} 11. Ng5+ {[%clk
0:02:28.1]} 11... Ke8 {[%clk 0:02:51.5]} 12. Qxg4 {[%clk 0:02:27.8]} 12... Qd7
{[%clk 0:01:37]} 13. Qd1 {[%clk 0:02:27.2]} 13... Be7 {[%clk 0:01:22.5]} 14. Nc3
{[%clk 0:02:17.1]} 14... Nf6 {[%clk 0:00:55.7]} 15. Ne2 {[%clk 0:02:02.3]} 15...
Nxe2+ {[%clk 0:00:50.1]} 16. Qxe2 {[%clk 0:02:03.2]} 16... Rh5 {[%clk
0:00:50.3]} 17. f3 {[%clk 0:01:23]} 17... Qc6 {[%clk 0:00:36.1]} 18. Be3 {[%clk
0:01:19.7]} 18... Kd7 {[%clk 0:00:34.7]} 19. Kf2 {[%clk 0:01:14.3]} 19... d5
{[%clk 0:00:29.3]} 20. c3 {[%clk 0:01:09.5]} 20... Rf8 {[%clk 0:00:27.1]} 21.
Ke1 {[%clk 0:01:08.4]} 21... b4 {[%clk 0:00:22.9]} 22. c4 {[%clk 0:00:59.9]}
22... d4 {[%clk 0:00:20.5]} 23. Bd2 {[%clk 0:00:58]} 23... a5 {[%clk 0:00:19.8]}
24. Kd1 {[%clk 0:00:52.1]} 24... Rhh8 {[%clk 0:00:18]} 25. Kc2 {[%clk
0:00:50.2]} 25... Nh5 {[%clk 0:00:18.3]} 26. f4 {[%clk 0:00:44.2]} 26... Bxg5
{[%clk 0:00:16.7]} 27. fxg5 {[%clk 0:00:40]} 27... g6 {[%clk 0:00:17.4]} 28.
Qg4+ {[%clk 0:00:38.3]} 28... Qe6 {[%clk 0:00:17.7]} 29. Qxe6+ {[%clk
0:00:36.4]} 29... Kxe6 {[%clk 0:00:18.6]} 30. Kb3 {[%clk 0:00:29.2]} 30... Ng3
{[%clk 0:00:17.7]} 31. Rf3 {[%clk 0:00:25.1]} 31... Rxf3 {[%clk 0:00:17]} 32.
gxf3 {[%clk 0:00:26]} 32... Rh2 {[%clk 0:00:16.8]} 33. Be1 {[%clk 0:00:22.6]}
33... Ne2 {[%clk 0:00:16.9]} 34. Ka4 {[%clk 0:00:22.3]} 34... Nf4 {[%clk
0:00:16.6]} 35. Kxa5 {[%clk 0:00:18.9]} 35... Nxd3 {[%clk 0:00:16.8]} 36. Bxb4
{[%clk 0:00:18.2]} 36... Rxb2 {[%clk 0:00:16.7]} 37. Ba3 {[%clk 0:00:13.7]}
37... Rb8 {[%clk 0:00:16.4]} 38. Ka4 {[%clk 0:00:12.1]} 38... c5 {[%clk
0:00:07.8]} 39. Rh1 {[%clk 0:00:10.9]} 39... Nb2+ {[%clk 0:00:06.3]} 40. Bxb2
{[%clk 0:00:09.7]} 40... Rxb2 {[%clk 0:00:07.2]} 41. Rh6 {[%clk 0:00:08.6]}
41... Kf7 {[%clk 0:00:02.8]} 42. Rh7+ {[%clk 0:00:08.7]} 42... Kf8 {[%clk
0:00:03.2]} 43. Rc7 {[%clk 0:00:08.5]} 43... Rb4+ {[%clk 0:00:03.3]} 44. Ka5
{[%clk 0:00:08.1]} 44... Rxc4 {[%clk 0:00:04]} 45. Kb5 {[%clk 0:00:08.2]} 45...
Rc2 {[%clk 0:00:03.4]} 46. Kc6 {[%clk 0:00:05.4]} 46... d3 {[%clk 0:00:03.4]}
47. Kd5 {[%clk 0:00:05.3]} 47... d2 {[%clk 0:00:03.4]} 48. Ke6 {[%clk
0:00:05.5]} 48... d1=Q {[%clk 0:00:02.1]} 49. Rc8+ {[%clk 0:00:05.7]} 49... Kg7
{[%clk 0:00:02.6]} 50. Rc7+ {[%clk 0:00:06]} 50... Kg8 {[%clk 0:00:01.8]} 51.
Rc8+ {[%clk 0:00:06.4]} 51... Kh7 {[%clk 0:00:02.3]} 52. Rc7+ {[%clk 0:00:06.7]}
52... Kh8 {[%clk 0:00:03.1]} 53. Rc8+ {[%clk 0:00:07]} 53... Kg7 {[%clk
0:00:03.8]} 54. Rc7+ {[%clk 0:00:07.5]} 54... Kg8 {[%clk 0:00:04.2]} 55. Rc8+
{[%clk 0:00:07.8]} 55... Kh7 {[%clk 0:00:03]} 56. Rc7+ {[%clk 0:00:08]} 56...
Kh8 {[%clk 0:00:02.7]} 57. Rc8+ {[%clk 0:00:08]} 57... Kg7 {[%clk 0:00:03.3]}
1/2-1/2